[Event "Lichtenrader Herbst 2019"]
[Site "Berlin"]
[Date "2019.10.16"]
[Round "5.1"]
[White "Starostits, Ilmars"]
[Black "Noetzel, Felix"]
[Result "1-0"]
[ECO "D30"]
[WhiteElo "2479"]
[BlackElo "2233"]
[Annotator "ChessBase"]
[PlyCount "69"]
[EventDate "2019.10.12"]
[EventType "swiss"]
[EventCountry "GER"]
[SourceTitle "playchess.com"]
[Source "ChessBase"]
[SourceQuality "1"]
[TimeControl "40/5400+30:1800+30"]

1. Nf3 {[%emt 0:00:00]} d5 {[%emt 0:00:00]} 2. d4 {[%emt 0:00:00]} Nf6 {[%emt 0:00:00]} 3. e3 {[%emt 0:00:00]} e6 {[%emt 0:00:35]} 4. Bd3 {[%emt 0:00:00]} Bd6 {[%emt 0:01:56]} 5. O-O {[%emt 0:00:00]} O-O {[%emt 0:01:10]} 6. b3 {[%emt 0:00:03]} Nbd7 {[%emt 0:02:03]} 7. Bb2 {[%emt 0:00:13]} Ne4 {[%emt 0:05:04]} 8. c4 {[%emt 0:00:10]} c6 {[%emt 0:11:05]} 9. Qc2 {[%emt 0:01:14]} f5 {[%emt 0:01:29]} 10. Ne5 {[%emt 0:00:36]} Qg5 {[%emt 0:16:48]} 11. Nd2 {[%emt 0:05:27]} Rf6 {[%emt 0:12:47]} 12. f4 {[%emt 0:01:10]} Qh5 {[%emt 0:00:12]} 13. Nxe4 {[%emt 0:01:51]} fxe4 {[%emt 0:01:47]} 14. Be2 {[%emt 0:00:07]} Qe8 {[%emt 0:01:42]} 15. a4 {[%emt 0:01:50]} Qe7 {[%emt 0:01:45]} 16. c5 {[%emt 0:00:32]} Bxe5 {[%emt 0:03:52]} 17. dxe5 {[%emt 0:00:46]} Rf7 {[%emt 0:01:11]} 18. Bd4 {[%emt 0:00:06]} a5 {[%emt 0:01:26]} 19. Rac1 {[%emt 0:03:28]} Nb8 {[%emt 0:06:59]} 20. g4 {[%emt 0:00:35]} Bd7 {[%emt 0:06:25]} 21. Qd2 {[%emt 0:01:09]} Rf8 {[%emt 0:04:25]} 22. Kh1 {[%emt 0:01:17]} Be8 {[%emt 0:04:37]} 23. f5 {[%emt 0:01:34]} Nd7 {[%emt 0:01:43]} 24. Rg1 {[%emt 0:05:25]} Qg5 {[%emt 0:05:20]} 25. Rcf1 {[%emt 0:02:05]} Bf7 {[%emt 0:03:40]} 26. Qe1 {[%emt 0:01:17]} b6 {[%emt 0:02:50]} 27. f6 {[%emt 0:01:27]} bxc5 {[%emt 0:01:17]} 28. h4 {[%emt 0:00:06]} Qg6 {[%emt 0:00:17]} 29. g5 {[%emt 0:00:35]} h5 {[%emt 0:01:16]} 30. fxg7 {[%emt 0:07:25]} Qxg7 {[%emt 0:00:35]} 31. g6 {[%emt 0:00:32]} Be8 {[%emt 0:00:25]} 32. Rf7 {[%emt 0:01:24]} Qh6 {[%emt 0:00:34]} 33. Rh7 {[%emt 0:00:22]} Qxh7 {[%emt 0:00:41]} 34. gxh7+ {[%emt 0:00:06]} Kxh7 {[%emt 0:00:03]} 35. Qg3 {[%emt 0:00:09]} 1-0

[Event "Lichtenrader Herbst 2019"]
[Site "Berlin"]
[Date "2019.10.16"]
[Round "5.4"]
[White "Roehr, Tobias"]
[Black "Pixa, Richard"]
[Result "1-0"]
[ECO "D31"]
[WhiteElo "2123"]
[BlackElo "2075"]
[Annotator "NA"]
[PlyCount "33"]
[EventDate "2019.10.12"]
[EventType "swiss"]
[EventCountry "GER"]
[SourceTitle "playchess.com"]
[Source "ChessBase"]
[SourceQuality "1"]
[TimeControl "40/5400+30:1800+30"]

1. d4 {[%emt 0:00:00]} d5 {[%emt 0:00:00]} 2. c4 {[%emt 0:00:00]} e6 {[%emt 0:00:00]} 3. Nc3 {[%emt 0:00:00]} c6 {[%emt 0:00:00]} 4. e4 {[%emt 0:00:00]} dxe4 {[%emt 0:00:28]} 5. Nxe4 {[%emt 0:00:00]} Bb4+ {[%emt 0:00:04]} 6. Bd2 {[%emt 0:00:00]} Qxd4 {[%emt 0:00:06]} 7. Bxb4 {[%emt 0:00:03]} Qxe4+ {[%emt 0:00:05]} 8. Be2 {[%emt 0:00:05]} Na6 {[%emt 0:01:06]} 9. Bd6 {[%emt 0:00:06]} Ne7 {[%emt 0:11:22]} 10. Nf3 $16 {[%emt 0:14:30]} f6 {[%emt 0:09:19]} 11. O-O {[%emt 0:03:44]} Qf5 {[%emt 0:08:01]} 12. Re1 {[%emt 0:24:39]} Kf7 {[%emt 0:11:13]} 13. Nd4 {[%emt 0:10:06]} Qa5 {[%emt 0:03:34]} 14. Bh5+ {[%emt 0:07:38]} Ng6 {[%emt 0:12:40]} 15. c5 {[%emt 0:07:19]} Re8 {[%emt 0:07:39]} 16. f4 {[%emt 0:03:05]} Qd8 {[%emt 0:02:40]} 17. f5 {[%emt 0:01:16]} 1-0

[Event "Lichtenrader Herbst 2019"]
[Site "Berlin"]
[Date "2019.10.17"]
[Round "6.1"]
[White "Shishkin, Vadim"]
[Black "Starostits, Ilmars"]
[Result "1/2-1/2"]
[ECO "D15"]
[WhiteElo "2428"]
[BlackElo "2479"]
[Annotator "ChessBase"]
[PlyCount "30"]
[EventDate "2019.10.12"]
[EventType "swiss"]
[EventCountry "GER"]
[SourceTitle "playchess.com"]
[Source "ChessBase"]
[SourceQuality "1"]
[TimeControl "40/5400+30:1800+30"]

1. d4 {[%emt 0:00:00]} d5 {[%emt 0:00:00]} 2. c4 {[%emt 0:00:00]} c6 {[%emt 0:00:00]} 3. Nf3 {[%emt 0:00:00]} Nf6 {[%emt 0:00:00]} 4. Nc3 {[%emt 0:00:00]} a6 {[%emt 0:00:01]} 5. e3 {[%emt 0:00:00]} Bg4 {[%emt 0:00:30]} 6. h3 {[%emt 0:00:29]} Bxf3 {[%emt 0:00:07]} 7. Qxf3 {[%emt 0:00:05]} e6 {[%emt 0:00:35]} 8. Bd2 {[%emt 0:00:11]} Be7 {[%emt 0:00:24]} 9. Qd1 {[%emt 0:00:09]} Nbd7 {[%emt 0:00:21]} 10. Be2 {[%emt 0:00:24]} O-O {[%emt 0:00:10]} 11. O-O {[%emt 0:00:09]} b5 {[%emt 0:00:33]} 12. cxd5 {[%emt 0:03:43]} cxd5 {[%emt 0:00:07]} 13. a4 {[%emt 0:00:04]} b4 {[%emt 0:00:18]} 14. Na2 {[%emt 0:00:04]} a5 {[%emt 0:00:55]} 15. Nc1 {[%emt 0:00:38]} Nb6 {[%emt 0:00:19]} 1/2-1/2

[Event "Lichtenrader Herbst 2019"]
[Site "Berlin"]
[Date "2019.10.17"]
[Round "6.2"]
[White "Nohr, Jonas"]
[Black "Roehr, Tobias"]
[Result "1/2-1/2"]
[ECO "D02"]
[WhiteElo "2124"]
[BlackElo "2123"]
[Annotator "NA"]
[PlyCount "71"]
[EventDate "2019.10.12"]
[EventType "swiss"]
[EventCountry "GER"]
[SourceTitle "playchess.com"]
[Source "ChessBase"]
[SourceQuality "1"]
[TimeControl "40/5400+30:1800+30"]

1. d4 {[%emt 0:00:00]} Nf6 {[%emt 0:00:02]} 2. Bf4 {[%emt 0:00:00]} e6 {[%emt 0:02:45]} 3. e3 {[%emt 0:00:11]} d5 {[%emt 0:02:09]} 4. c3 {[%emt 0:00:15]} Bd6 {[%emt 0:01:58]} 5. Bg3 {[%emt 0:03:24]} O-O {[%emt 0:01:43]} 6. Nd2 {[%emt 0:00:24]} c5 {[%emt 0:05:09]} 7. Bd3 {[%emt 0:00:19]} Nc6 {[%emt 0:01:09]} 8. Ngf3 {[%emt 0:04:30]} Ne7 {[%emt 0:02:21]} 9. Qe2 {[%emt 0:03:32]} Re8 {[%emt 0:12:40]} 10. Ne5 {[%emt 0:06:09]} Nf5 {[%emt 0:06:40]} 11. f4 {[%emt 0:01:54]} Be7 {[%emt 0:01:04]} 12. Bf2 {[%emt 0:02:00]} Nd6 {[%emt 0:01:14]} 13. dxc5 {[%emt 0:08:37]} Nde4 {[%emt 0:00:08]} 14. Nxe4 {[%emt 0:00:05]} Nxe4 {[%emt 0:04:40]} 15. c6 {[%emt 0:05:56]} f6 {[%emt 0:03:49]} 16. cxb7 {[%emt 0:04:27]} Bxb7 {[%emt 0:00:10]} 17. Nf3 {[%emt 0:03:01]} Qb6 {[%emt 0:03:51]} 18. O-O {[%emt 0:03:11]} Bc5 {[%emt 0:04:30]} 19. Rfe1 {[%emt 0:04:12]} a5 {[%emt 0:12:59]} 20. Rab1 {[%emt 0:10:13]} Rad8 {[%emt 0:04:37]} 21. Nd2 {[%emt 0:02:22]} Qd6 {[%emt 0:11:07]} 22. Bb5 {[%emt 0:03:57]} Bc6 {[%emt 0:01:05]} 23. Bxc6 {[%emt 0:01:06]} Qxc6 {[%emt 0:00:04]} 24. Nxe4 {[%emt 0:00:08]} dxe4 {[%emt 0:00:04]} 25. Rbd1 {[%emt 0:02:39]} Qb6 {[%emt 0:02:47]} 26. h3 {[%emt 0:02:06]} Rd3 {[%emt 0:05:07]} 27. Rxd3 {[%emt 0:00:36]} exd3 {[%emt 0:00:03]} 28. Qxd3 {[%emt 0:00:06]} Qxb2 {[%emt 0:00:17]} 29. Qd7 {[%emt 0:01:49]} Kf8 {[%emt 0:00:09]} 30. Qd3 {[%emt 0:01:45]} Qxa2 {[%emt 0:01:09]} 31. Qxh7 {[%emt 0:00:14]} Qc4 {[%emt 0:02:16]} 32. Rd1 {[%emt 0:04:06]} a4 {[%emt 0:01:38]} 33. h4 {[%emt 0:05:30]} Qxc3 {[%emt 0:02:04]} 34. Rd7 {[%emt 0:00:17]} Be7 {[%emt 0:00:22]} 35. Qh8+ {[%emt 0:01:54]} Kf7 {[%emt 0:00:04]} 36. Qh5+ {[%emt 0:00:03]} 1/2-1/2

[Event "Lichtenrader Herbst 2019"]
[Site "Berlin"]
[Date "2019.10.17"]
[Round "6.3"]
[White "Kovalev, Andrei"]
[Black "Wierzbicki, Jirawat"]
[Result "1-0"]
[ECO "C96"]
[WhiteElo "2511"]
[BlackElo "2114"]
[Annotator "ChessBase"]
[PlyCount "65"]
[EventDate "2019.10.12"]
[EventType "swiss"]
[EventCountry "GER"]
[SourceTitle "playchess.com"]
[Source "ChessBase"]
[SourceQuality "1"]
[TimeControl "40/5400+30:1800+30"]

1. e4 {[%emt 0:00:00]} e5 {[%emt 0:00:00]} 2. Nf3 {[%emt 0:00:00]} Nc6 {[%emt 0:00:00]} 3. Bb5 {[%emt 0:00:00]} a6 {[%emt 0:00:00]} 4. Ba4 {[%emt 0:00:00]} Nf6 {[%emt 0:00:00]} 5. O-O {[%emt 0:00:00]} Be7 {[%emt 0:00:01]} 6. Re1 {[%emt 0:00:04]} b5 {[%emt 0:00:04]} 7. Bb3 {[%emt 0:00:04]} d6 {[%emt 0:00:05]} 8. c3 {[%emt 0:00:07]} O-O {[%emt 0:00:10]} 9. h3 {[%emt 0:00:14]} Na5 {[%emt 0:00:05]} 10. Bc2 {[%emt 0:00:04]} c5 {[%emt 0:00:06]} 11. d4 {[%emt 0:00:03]} Nd7 {[%emt 0:00:17]} 12. d5 {[%emt 0:00:08]} Nb6 {[%emt 0:04:30]} 13. Nbd2 {[%emt 0:00:11]} f5 {[%emt 0:01:34]} 14. exf5 {[%emt 0:00:05]} Bxf5 {[%emt 0:00:41]} 15. Bxf5 {[%emt 0:00:05]} Rxf5 {[%emt 0:00:06]} 16. Ne4 {[%emt 0:00:06]} Qd7 {[%emt 0:08:10]} 17. b3 {[%emt 0:02:38]} Qb7 {[%emt 0:07:53]} 18. c4 {[%emt 0:00:47]} Qd7 {[%emt 0:05:14]} 19. Bd2 {[%emt 0:02:45]} Nb7 {[%emt 0:01:53]} 20. Qe2 {[%emt 0:05:56]} Rff8 {[%emt 0:05:51]} 21. Nfg5 {[%emt 0:09:58]} Bxg5 {[%emt 0:06:31]} 22. Nxg5 {[%emt 0:05:05]} h6 {[%emt 0:01:05]} 23. Ne6 {[%emt 0:05:16]} Rf6 {[%emt 0:05:09]} 24. a4 {[%emt 0:14:29]} b4 {[%emt 0:05:34]} 25. a5 {[%emt 0:00:29]} Nc8 {[%emt 0:00:21]} 26. f4 {[%emt 0:00:09]} exf4 {[%emt 0:02:48]} 27. Nxf4 {[%emt 0:04:42]} Rf8 {[%emt 0:07:21]} 28. Ne6 {[%emt 0:03:18]} Re8 {[%emt 0:10:22]} 29. Qg4 {[%emt 0:11:50]} Kh8 {[%emt 0:03:36]} 30. Ng5 {[%emt 0:01:13]} Nb6 {[%emt 0:01:11]} 31. Ne6 {[%emt 0:04:07]} Nc8 {[%emt 0:01:16]} 32. Qg6 {[%emt 0:01:40]} Na7 {[%emt 0:02:51]} 33. Rf1 {[%emt 0:00:50]} 1-0

[Event "Lichtenrader Herbst 2019"]
[Site "Berlin"]
[Date "2019.10.17"]
[Round "6.5"]
[White "Postler, Reinhard"]
[Black "Daverkausen, Bernd"]
[Result "1/2-1/2"]
[ECO "B32"]
[WhiteElo "2240"]
[BlackElo "2122"]
[Annotator "NA"]
[PlyCount "57"]
[EventDate "2019.10.12"]
[EventType "swiss"]
[EventCountry "GER"]
[SourceTitle "playchess.com"]
[Source "ChessBase"]
[SourceQuality "1"]
[TimeControl "40/5400+30:1800+30"]

1. e4 {[%emt 0:00:00]} c5 {[%emt 0:00:00]} 2. Nf3 {[%emt 0:00:00]} Nc6 {[%emt 0:00:00]} 3. d4 {[%emt 0:00:00]} cxd4 {[%emt 0:00:02]} 4. Nxd4 {[%emt 0:00:00]} e5 {[%emt 0:00:15]} 5. Nb5 {[%emt 0:00:15]} d6 {[%emt 0:00:10]} 6. c4 {[%emt 0:02:07]} Be7 {[%emt 0:00:27]} 7. N1c3 {[%emt 0:00:58]} a6 {[%emt 0:00:17]} 8. Na3 {[%emt 0:00:19]} f5 {[%emt 0:00:22]} 9. exf5 {[%emt 0:01:04]} Bxf5 {[%emt 0:00:31]} 10. Bd3 {[%emt 0:00:22]} Be6 {[%emt 0:00:20]} 11. Nc2 {[%emt 0:13:41]} Nf6 {[%emt 0:00:56]} 12. Ne3 {[%emt 0:01:11]} O-O {[%emt 0:04:52]} 13. O-O {[%emt 0:14:33]} Qd7 {[%emt 0:03:11]} 14. Ned5 {[%emt 0:14:06]} Rae8 {[%emt 0:06:08]} 15. Be3 {[%emt 0:05:16]} Bd8 {[%emt 0:05:24]} 16. f3 {[%emt 0:01:37]} Nd4 {[%emt 0:08:13]} 17. Qd2 {[%emt 0:09:31]} Qf7 {[%emt 0:10:37]} 18. Be4 {[%emt 0:03:36]} Nf5 {[%emt 0:06:14]} 19. Bf2 {[%emt 0:00:35]} Kh8 {[%emt 0:11:46]} 20. b3 {[%emt 0:00:50]} Nxe4 {[%emt 0:05:51]} 21. Nxe4 {[%emt 0:05:20]} Bxd5 {[%emt 0:00:41]} 22. cxd5 {[%emt 0:00:44]} Qd7 {[%emt 0:05:01]} 23. a4 {[%emt 0:03:25]} Be7 {[%emt 0:05:47]} 24. Rac1 {[%emt 0:01:59]} Rc8 {[%emt 0:02:16]} 25. Qb4 {[%emt 0:03:31]} Kg8 {[%emt 0:02:53]} 26. Qb6 {[%emt 0:04:06]} Bd8 {[%emt 0:03:08]} 27. Qb4 {[%emt 0:00:18]} Be7 {[%emt 0:00:35]} 28. Qb6 {[%emt 0:00:21]} Bd8 {[%emt 0:00:07]} 29. Qb4 {[%emt 0:00:27]} 1/2-1/2

[Event "Lichtenrader Herbst 2019"]
[Site "Berlin"]
[Date "2019.10.17"]
[Round "6.6"]
[White "Matthes, Aaron"]
[Black "Katzir, Moshe"]
[Result "1-0"]
[ECO "D31"]
[WhiteElo "1995"]
[BlackElo "2125"]
[Annotator "NA"]
[PlyCount "66"]
[EventDate "2019.10.12"]
[EventType "swiss"]
[EventCountry "GER"]
[SourceTitle "playchess.com"]
[Source "ChessBase"]
[SourceQuality "1"]
[TimeControl "40/5400+30:1800+30"]

1. d4 {[%emt 0:00:00]} d5 {[%emt 0:00:00]} 2. c4 {[%emt 0:00:00]} e6 {[%emt 0:00:44]} 3. cxd5 {[%emt 0:00:00]} exd5 {[%emt 0:00:24]} 4. Nc3 {[%emt 0:00:00]} c6 {[%emt 0:00:20]} 5. Qc2 {[%emt 0:00:17]} Bd6 {[%emt 0:02:14]} 6. Nf3 {[%emt 0:00:57]} Ne7 {[%emt 0:00:33]} 7. e4 {[%emt 0:02:56]} dxe4 {[%emt 0:01:06]} 8. Nxe4 {[%emt 0:00:11]} Bb4+ {[%emt 0:02:31]} 9. Bd2 {[%emt 0:00:35]} Bxd2+ {[%emt 0:06:25]} 10. Qxd2 {[%emt 0:00:48]} Bf5 {[%emt 0:10:32]} 11. Bd3 {[%emt 0:03:41]} Qd5 {[%emt 0:11:50]} 12. O-O {[%emt 0:19:20]} O-O {[%emt 0:04:47]} 13. Rfe1 {[%emt 0:03:42]} Ng6 {[%emt 0:07:58]} 14. Qb4 {[%emt 0:09:54]} b5 {[%emt 0:18:45]} 15. Rac1 {[%emt 0:15:27]} Nf4 {[%emt 0:09:47]} 16. Bb1 {[%emt 0:07:02]} Bg4 {[%emt 0:04:44]} 17. Neg5 {[%emt 0:04:07]} Na6 {[%emt 0:02:54]} 18. Qd2 {[%emt 0:02:19]} Ng6 {[%emt 0:03:43]} 19. Be4 {[%emt 0:00:34]} Qd8 {[%emt 0:00:24]} 20. Rxc6 {[%emt 0:02:43]} Nc7 {[%emt 0:01:03]} 21. Qc2 {[%emt 0:05:52]} Nd5 {[%emt 0:02:53]} 22. h3 {[%emt 0:02:01]} Bxf3 {[%emt 0:01:18]} 23. Nxf3 {[%emt 0:00:04]} Nb4 {[%emt 0:00:07]} 24. Qc5 {[%emt 0:00:45]} Nxc6 {[%emt 0:00:14]} 25. Bxc6 {[%emt 0:00:11]} Rc8 {[%emt 0:01:20]} 26. Qxb5 {[%emt 0:00:54]} Rb8 {[%emt 0:00:29]} 27. Qc5 {[%emt 0:01:43]} Rxb2 {[%emt 0:01:16]} 28. Qxa7 {[%emt 0:00:33]} Qf6 {[%emt 0:00:33]} 29. d5 {[%emt 0:00:30]} Nf4 {[%emt 0:00:28]} 30. Qa3 {[%emt 0:00:30]} Rfb8 {[%emt 0:03:02]} 31. Qe7 {[%emt 0:00:16]} Rb1 {[%emt 0:00:12]} 32. Qxf6 {[%emt 0:00:01]} Rxe1+ 33. Nxe1 gxf6 {[%emt 0:00:03]} 1-0

[Event "Lichtenrader Herbst 2019"]
[Site "Berlin"]
[Date "2019.10.17"]
[Round "6.8"]
[White "Krefenstein, Sergej"]
[Black "Fuchs, Dominik"]
[Result "1-0"]
[ECO "C54"]
[WhiteElo "2139"]
[BlackElo "1939"]
[Annotator "NA"]
[PlyCount "63"]
[EventDate "2019.10.12"]
[EventType "swiss"]
[EventCountry "GER"]
[SourceTitle "playchess.com"]
[Source "ChessBase"]
[SourceQuality "1"]
[TimeControl "40/5400+30:1800+30"]

1. e4 {[%emt 0:00:00]} e5 {[%emt 0:01:43]} 2. Nf3 {[%emt 0:01:20]} Nc6 {[%emt 0:00:07]} 3. Bc4 {[%emt 0:00:06]} Bc5 {[%emt 0:00:08]} 4. c3 {[%emt 0:00:09]} Nf6 {[%emt 0:00:05]} 5. d3 {[%emt 0:00:08]} a6 {[%emt 0:00:19]} 6. Bb3 {[%emt 0:00:50]} Ba7 {[%emt 0:00:06]} 7. Nbd2 {[%emt 0:00:56]} O-O {[%emt 0:00:37]} 8. h3 {[%emt 0:00:59]} d6 {[%emt 0:00:51]} 9. Nf1 {[%emt 0:00:42]} d5 {[%emt 0:02:23]} 10. Qe2 {[%emt 0:02:18]} h6 {[%emt 0:06:43]} 11. g4 {[%emt 0:01:03]} dxe4 {[%emt 0:16:17]} 12. dxe4 {[%emt 0:00:21]} Be6 {[%emt 0:00:38]} 13. g5 {[%emt 0:10:59]} Nh5 {[%emt 0:01:03]} 14. gxh6 {[%emt 0:01:55]} g6 {[%emt 0:01:04]} 15. Bg5 {[%emt 0:10:38]} Qd7 {[%emt 0:04:04]} 16. Rd1 {[%emt 0:00:47]} Qe8 {[%emt 0:00:05]} 17. h4 {[%emt 0:09:55]} Bxb3 {[%emt 0:06:16]} 18. axb3 {[%emt 0:00:09]} f5 {[%emt 0:01:00]} 19. Ng3 {[%emt 0:09:11]} fxe4 {[%emt 0:30:10]} 20. Qxe4 {[%emt 0:03:31]} Nf6 {[%emt 0:03:28]} 21. Qc4+ {[%emt 0:18:31]} Qf7 {[%emt 0:00:14]} 22. Bxf6 {[%emt 0:06:55]} Qxc4 {[%emt 0:00:08]} 23. h7+ {[%emt 0:00:13]} Kxh7 {[%emt 0:03:59]} 24. bxc4 {[%emt 0:01:03]} Rxf6 {[%emt 0:00:26]} 25. Ng5+ {[%emt 0:00:16]} Kg8 {[%emt 0:10:08]} 26. N3e4 {[%emt 0:00:18]} Rff8 {[%emt 0:00:09]} 27. Rd7 {[%emt 0:01:37]} Rae8 {[%emt 0:00:07]} 28. Rxc7 {[%emt 0:02:15]} Re7 {[%emt 0:00:14]} 29. Rxe7 {[%emt 0:00:28]} Nxe7 {[%emt 0:00:05]} 30. Ke2 {[%emt 0:01:06]} Rb8 {[%emt 0:09:09]} 31. Rd1 {[%emt 0:01:37]} Nf5 {[%emt 0:00:18]} 32. Rd7 {[%emt 0:00:31]} 1-0

[Event "Lichtenrader Herbst 2019"]
[Site "Berlin"]
[Date "2019.10.18"]
[Round "7.1"]
[White "Starostits, Ilmars"]
[Black "Kovalev, Andrei"]
[Result "1/2-1/2"]
[ECO "B22"]
[WhiteElo "2479"]
[BlackElo "2511"]
[Annotator "ChessBase"]
[PlyCount "45"]
[EventDate "2019.10.12"]
[EventType "swiss"]
[EventCountry "GER"]
[SourceTitle "playchess.com"]
[Source "ChessBase"]
[SourceQuality "1"]
[TimeControl "40/5400+30:1800+30"]

1. e4 {[%emt 0:00:00]} c5 {[%emt 0:00:24]} 2. c3 {[%emt 0:00:22]} Nf6 {[%emt 0:10:14]} 3. e5 {[%emt 0:00:07]} Nd5 {[%emt 0:00:10]} 4. d4 {[%emt 0:00:27]} cxd4 {[%emt 0:01:26]} 5. Nf3 {[%emt 0:01:13]} Nc6 {[%emt 0:01:56]} 6. cxd4 {[%emt 0:01:50]} d6 {[%emt 0:01:25]} 7. Bc4 {[%emt 0:02:41]} Nb6 {[%emt 0:03:05]} 8. Bb5 {[%emt 0:00:07]} dxe5 {[%emt 0:02:00]} 9. Nxe5 {[%emt 0:02:31]} Bd7 {[%emt 0:00:29]} 10. Nc3 {[%emt 0:06:34]} Nxe5 {[%emt 0:04:06]} 11. dxe5 {[%emt 0:00:50]} Bxb5 {[%emt 0:00:24]} 12. Nxb5 {[%emt 0:01:02]} Qxd1+ {[%emt 0:01:26]} 13. Kxd1 {[%emt 0:00:05]} Nd5 {[%emt 0:00:37]} 14. Bd2 {[%emt 0:02:42]} a6 {[%emt 0:00:30]} 15. Nc3 {[%emt 0:00:05]} O-O-O {[%emt 0:01:42]} 16. Rc1 {[%emt 0:01:21]} Kb8 {[%emt 0:01:25]} 17. Ke2 {[%emt 0:01:01]} e6 {[%emt 0:00:30]} 18. Nxd5 {[%emt 0:00:12]} Rxd5 {[%emt 0:00:11]} 19. Be3 {[%emt 0:01:44]} Be7 {[%emt 0:00:45]} 20. Rhd1 {[%emt 0:00:09]} Rxd1 {[%emt 0:00:33]} 21. Rxd1 {[%emt 0:00:03]} Rd8 {[%emt 0:00:11]} 22. Rxd8+ {[%emt 0:00:14]} Bxd8 {[%emt 0:00:06]} 23. Kd3 {[%emt 0:00:05]} 1/2-1/2

[Event "Lichtenrader Herbst 2019"]
[Site "Berlin"]
[Date "2019.10.18"]
[Round "7.2"]
[White "Noetzel, Felix"]
[Black "Shishkin, Vadim"]
[Result "1-0"]
[ECO "B80"]
[WhiteElo "2233"]
[BlackElo "2428"]
[Annotator "RC"]
[PlyCount "113"]
[EventDate "2019.10.12"]
[EventType "swiss"]
[EventCountry "GER"]
[SourceTitle "playchess.com"]
[Source "ChessBase"]
[SourceQuality "1"]
[TimeControl "40/5400+30:1800+30"]

1. e4 {[%emt 0:08:50]} c5 {[%emt 0:00:00]} 2. Nf3 {[%emt 0:00:10]} Nc6 {[%emt 0:00:00]} 3. d4 {[%emt 0:00:06]} cxd4 {[%emt 0:00:10]} 4. Nxd4 {[%emt 0:00:05]} Nf6 {[%emt 0:00:10]} 5. Nc3 {[%emt 0:00:20]} d6 {[%emt 0:00:03]} 6. f3 {[%emt 0:01:18]} e6 {[%emt 0:04:22]} 7. Be3 {[%emt 0:00:20]} Be7 {[%emt 0:00:07]} 8. Qd2 {[%emt 0:00:19]} a6 {[%emt 0:00:32]} 9. O-O-O {[%emt 0:01:33]} O-O {[%emt 0:03:12]} 10. g4 {[%emt 0:01:52]} Nxd4 {[%emt 0:00:57]} 11. Bxd4 {[%emt 0:01:54]} Nd7 {[%emt 0:00:43]} 12. Kb1 {[%emt 0:04:31]} b5 {[%emt 0:00:10]} 13. h4 {[%emt 0:09:28]} Bb7 {[%emt 0:06:30]} 14. g5 {[%emt 0:04:10]} Qc7 {[%emt 0:11:01]} 15. h5 {[%emt 0:10:19]} b4 {[%emt 0:00:40]} 16. Ne2 {[%emt 0:04:54]} Ne5 {[%emt 0:09:10]} 17. Bxe5 {[%emt 0:04:49]} dxe5 {[%emt 0:00:04]} 18. Nc1 {[%emt 0:00:18]} a5 {[%emt 0:18:17]} 19. Bh3 {[%emt 0:10:38]} Ra6 {[%emt 0:07:54]} 20. g6 {[%emt 0:13:40]} Rd6 {[%emt 0:07:55]} 21. gxf7+ {[%emt 0:01:50]} Rxf7 {[%emt 0:00:16]} 22. Qe3 {[%emt 0:03:12]} Ba6 {[%emt 0:13:04]} 23. Bg4 {[%emt 0:05:46]} h6 {[%emt 0:04:25]} 24. Rxd6 {[%emt 0:00:34]} Qxd6 {[%emt 0:00:10]} 25. Qb3 {[%emt 0:00:27]} Rf6 {[%emt 0:05:50]} 26. Qa4 {[%emt 0:03:05]} Bd8 {[%emt 0:01:37]} 27. Nb3 {[%emt 0:01:27]} Be2 {[%emt 0:01:01]} 28. Nxa5 {[%emt 0:02:22]} Bxf3 {[%emt 0:01:51]} 29. Bxf3 {[%emt 0:00:39]} Rxf3 {[%emt 0:00:01]} 30. Nb7 {[%emt 0:01:43]} Qf8 {[%emt 0:01:28]} 31. Qa6 {[%emt 0:01:27]} Bg5 {[%emt 0:01:20]} 32. Qxe6+ {[%emt 0:01:08]} Kh8 {[%emt 0:00:08]} 33. Qc4 {[%emt 0:00:16]} Be3 {[%emt 0:01:42]} 34. Rd1 {[%emt 0:01:08]} Bd4 {[%emt 0:00:46]} 35. Na5 {[%emt 0:01:12]} Qf4 {[%emt 0:00:27]} 36. Nb3 {[%emt 0:01:28]} Re3 {[%emt 0:01:15]} 37. Nxd4 {[%emt 0:00:34]} exd4 {[%emt 0:00:09]} 38. Qxb4 {[%emt 0:00:30]} Rxe4 {[%emt 0:00:19]} 39. Qc4 {[%emt 0:00:33]} Qg4 {[%emt 0:00:36]} 40. Rf1 {[%emt 0:00:24]} Rf4 {[%emt 0:00:48]} 41. a4 {[%emt 0:08:39]} Rxf1+ {[%emt 0:00:10]} 42. Qxf1 {[%emt 0:00:06]} Qxh5 {[%emt 0:00:03]} 43. b4 {[%emt 0:01:58]} Qg4 {[%emt 0:11:57]} 44. Qc4 {[%emt 0:07:57]} h5 {[%emt 0:01:12]} 45. a5 {[%emt 0:00:12]} d3 {[%emt 0:07:22]} 46. cxd3 {[%emt 0:00:49]} Qg3 {[%emt 0:01:53]} 47. a6 {[%emt 0:05:17]} h4 {[%emt 0:00:07]} 48. Qd4 {[%emt 0:02:15]} Qe1+ {[%emt 0:01:32]} 49. Kb2 {[%emt 0:00:21]} Qd2+ {[%emt 0:01:29]} 50. Ka3 {[%emt 0:00:55]} Qc1+ {[%emt 0:00:08]} 51. Ka4 {[%emt 0:00:16]} Qc6+ {[%emt 0:03:16]} 52. b5 {[%emt 0:01:28]} Qc2+ {[%emt 0:00:08]} 53. Kb4 {[%emt 0:00:56]} Qd2+ {[%emt 0:00:46]} 54. Kc5 {[%emt 0:00:38]} Qg5+ {[%emt 0:00:46]} 55. Kb6 {[%emt 0:00:59]} Qg6+ {[%emt 0:00:55]} 56. Ka5 {[%emt 0:00:21]} h3 {[%emt 0:00:33]} 57. a7 {[%emt 0:01:33]} 1-0

[Event "Lichtenrader Herbst 2019"]
[Site "Berlin"]
[Date "2019.10.18"]
[Round "7.3"]
[White "Krefenstein, Sergej"]
[Black "Holinka, Henning"]
[Result "1/2-1/2"]
[ECO "B06"]
[WhiteElo "2139"]
[BlackElo "2101"]
[Annotator "NA"]
[PlyCount "48"]
[EventDate "2019.10.12"]
[EventType "swiss"]
[EventCountry "GER"]
[SourceTitle "playchess.com"]
[Source "ChessBase"]
[SourceQuality "1"]
[TimeControl "40/5400+30:1800+30"]

1. e4 {[%emt 0:00:00]} g6 {[%emt 0:00:00]} 2. d4 {[%emt 0:00:00]} Bg7 {[%emt 0:00:00]} 3. Nc3 {[%emt 0:00:00]} d6 {[%emt 0:00:00]} 4. f4 {[%emt 0:00:00]} a6 {[%emt 0:00:00]} 5. Nf3 {[%emt 0:00:11]} b5 {[%emt 0:00:00]} 6. Bd3 {[%emt 0:00:14]} Nd7 {[%emt 0:00:06]} 7. a4 {[%emt 0:00:34]} c5 {[%emt 0:02:50]} 8. axb5 {[%emt 0:01:04]} cxd4 {[%emt 0:00:35]} 9. Nd5 {[%emt 0:03:32]} Ngf6 {[%emt 0:05:25]} 10. Nxf6+ {[%emt 0:13:42]} Bxf6 {[%emt 0:00:11]} 11. bxa6 {[%emt 0:00:16]} Qb6 {[%emt 0:04:13]} 12. Qe2 {[%emt 0:03:29]} O-O {[%emt 0:08:47]} 13. b4 {[%emt 0:08:10]} Qxb4+ {[%emt 0:06:09]} 14. Bd2 {[%emt 0:00:06]} Qb6 {[%emt 0:01:21]} 15. e5 {[%emt 0:06:09]} dxe5 {[%emt 0:00:59]} 16. fxe5 {[%emt 0:00:10]} Bg7 {[%emt 0:01:26]} 17. O-O {[%emt 0:09:46]} Bxa6 {[%emt 0:04:08]} 18. Rxa6 {[%emt 0:05:59]} Rxa6 {[%emt 0:00:12]} 19. Bxa6 {[%emt 0:00:07]} d3+ {[%emt 0:00:23]} 20. Qe3 {[%emt 0:00:13]} Qxa6 {[%emt 0:00:24]} 21. cxd3 {[%emt 0:00:15]} Rb8 {[%emt 0:17:19]} 22. d4 {[%emt 0:02:57]} Qa2 {[%emt 0:03:43]} 23. Qg5 {[%emt 0:12:35]} f6 {[%emt 0:01:45]} 24. Qg4 {[%emt 0:01:01]} Nf8 {[%emt 0:01:21]} 1/2-1/2